Cogmind - Beta 12 @@@ ROGUE MODE // 2023.07.07 @ 10:49:43 Player: Senator Honkstrong Result: Self-destructed Performance ------------- Evolutions (1) 500 Regions Visited (3) 600 Robots Destroyed (43) 215 Value Destroyed (857) 857 Prototype IDs (8) 160 Alien Tech Used (0) 0 Bonus (0) 0 TOTAL SCORE: 2332 Bonus ------- None Cogmind --------- Core Integrity 32/400 Matter 300/300 Energy 100/100 System Corruption 0% Temperature Cool (0) Movement Walking (190) Ox1 Location -9/Mines Parts ------- > --- POWER (1) -------- (None) > --- PROPULSION (4) --- Aluminum Leg > --- UTILITY (2) ------ Cooling System Medium Storage Unit > --- WEAPON (2) ------- Beam Rifle > --- INVENTORY (10) --- Light Treads Cooling System Sensor Array Improved Targeting Computer Beam Rifle Particle Gun Light Cannon Mining Laser Plasma Cutter Peak State ------------ > --- POWER ------------ Improved Ion Engine > --- PROPULSION ------- Aluminum Leg Aluminum Leg Aluminum Leg Aluminum Leg > --- UTILITY ---------- Cooling System Medium Storage Unit > --- WEAPON ----------- Beam Cannon Plasma Cutter > --- INVENTORY -------- Light Ion Engine Cooling System Sensor Array Seismic Detector Improved Targeting Computer Beam Rifle Beam Rifle Particle Gun Light Cannon Light Cannon [Rating: 13] Favorites ----------- Power Light Ion Engine Engine Light Ion Engine Propulsion Aluminum Leg Treads Light Treads Leg Aluminum Leg Flight Unit Flight Unit Utility Cooling System Device Cooling System Storage Medium Storage Unit Weapon Beam Rifle Energy Gun Beam Rifle Energy Cannon Beam Cannon Ballistic Gun Autogun Ballistic Cannon Light Cannon Special Weapon Mining Laser Build | -11 -10 -9 -9 ------- Run | Jun Mat Mat Min Slots Evolved 2 | . . 2 . Power . | . . . . Propulsion 2 | . . 2 . Utility . | . . . . Weapon . | . . . . Parts Attached 52 | 6 10 33 3 Power 8 | 1 1 6 . Engine 8 | 1 1 6 . Core . | . . . . Reactor . | . . . . Propulsion 19 | 2 4 11 2 Treads 2 | . . 2 . Leg 8 | 2 . 4 2 Wheel . | . . . . Hover . | . . . . Flight 9 | . 4 5 . Utility 9 | 1 1 7 . Device 6 | . 1 5 . Storage 3 | 1 . 2 . Processor . | . . . . Hackware . | . . . . Protection . | . . . . Artifact . | . . . . Weapon 16 | 2 4 9 1 Energy Gun 6 | 1 2 2 1 Energy Cannon 1 | . . 1 . Ballistic Gun 3 | 1 1 1 . Ballistic Cannon 3 | . . 3 . Launcher . | . . . . Special Weapon 3 | . 1 2 . Impact Weapon . | . . . . Slashing Weapon . | . . . . Piercing Weapon . | . . . . Special Melee Weapon . | . . . . Unidentified Prototypes 1 | . . 1 . Parts Lost 16 | . 2 10 4 Power 4 | . 1 2 1 Propulsion 10 | . 1 7 2 Utility . | . . . . Weapon 2 | . . 1 1 Highest Loss Streak 6 | . 1 6 4 To Critical Strikes 1 | . . . 1 Average Slot Usage (%) 87 | . 75 91 82 Engine 10 | . 13 10 7 Treads 4 | . . 6 . Leg 21 | . 7 20 33 Flight 9 | . 20 10 . Device 11 | . 1 13 11 Storage 7 | . 4 7 11 Energy Gun 7 | . 12 7 3 Energy Cannon 3 | . . 3 7 Ballistic Gun 3 | . 14 2 . Ballistic Cannon 5 | . . 6 6 Special Weapon 1 | . 1 2 . Naked Turns . | . . . . Heaviest Build 25 | 13 13 25 25 Greatest Support 40 | 20 20 40 40 Greatest Overweight (x) 3 | . 1 3 2 Average Overweight (x) . | . . . . Largest Inventory Capacity 10 | 8 8 10 10 Average Capacity 8 | 7 5 8 10 Most Carried 10 | 5 8 10 10 Average Carried 7 | 2 4 6 9 Final Capacity 10 | 8 5 10 10 Final Carried 9 | 4 4 9 9 Class Distribution -------------------- 60% | Scavenger-Mutant 27% | Mutant 12% | Scavenger-Sprinter Dominant Class ---------------- Mutant | -10/Materials Scavenger-Mutant | -9/Materials Scavenger-Mutant | -9/Mines Resources | -11 -10 -9 -9 ----------- Run | Jun Mat Mat Min Matter Collected 1007 | 227 116 530 134 Remotely . | . . . . Salvage Created 1360 | . 171 949 240 Parts 90 | . 19 59 12 Haulers Intercepted 3 | . . 3 . Recyclers Shooed 2 | . . 2 . Parts Field Recycled . | . . . . Retrieved Matter . | . . . . Parts Self-Destructed . | . . . . Prevented . | . . . . Kills | -11 -10 -9 -9 ------- Run | Jun Mat Mat Min Combat Hostiles Destroyed 33 | . 9 20 4 Guns 23 | . 9 14 . Cannons 9 | . . 5 4 Classes Destroyed 8 | . 3 4 1 Worker 1 | . 1 . . Hauler 3 | . . 3 . Recycler 4 | . . 3 1 Watcher 2 | . 1 1 . Swarmer 17 | . 9 8 . Grunt 13 | . . 10 3 Brawler 1 | . . . 1 Sentry 2 | . . 2 . Best Kill Streak 7 | . 6 7 3 Combat Bots Only 6 | . 6 5 2 Max Kills in Single Turn 2 | . 2 2 1 Gunslinging 1 | . 1 . . Exploded . | . . . . Melee . | . . . . Uniques/NPCs Destroyed . | . . . . Combat | -11 -10 -9 -9 -------- Run | Jun Mat Mat Min Damage Taken 1923 | . 450 590 883 Core 446 | . 78 96 272 Absorbed by Shields . | . . . . Core Remaining (%) 84 | 100 68 . . Volleys Fired 141 | . 31 92 18 Largest 2 | . 2 2 2 Hottest 160 | . 120 160 116 Shots Fired 270 | . 62 173 35 Gun 147 | . 57 89 1 Cannon 92 | . . 58 34 Launcher . | . . . . Special 31 | . 5 26 . Kinetic 106 | . 31 59 16 Thermal 164 | . 31 114 19 Explosive . | . . . . Electromagnetic . | . . . . Robot Hit Streak 12 | . 6 12 6 Robot Miss Streak 5 | . 4 4 5 Penetration Max . | . . . . Secondary Targets 4 | . 4 . . Max Gunslinging Chain 1 | . 1 . . Shots Hit Robots 121 | . 28 77 16 Core Hits 52 | . 13 33 6 Critical Kills . | . . . . Critical Parts Destroyed . | . . . . Critical Strikes 6 | . . 5 1 Burn 4 | . . 4 . Blast 2 | . . 1 1 Melee Attacks . | . . . . Impact . | . . . . Slashing . | . . . . Piercing . | . . . . Sneak Attacks . | . . . . Combat Hostiles . | . . . . Follow-up Attacks . | . . . . Damage Inflicted 1883 | . 331 1261 291 Guns 1158 | . 331 813 14 Cannons 696 | . . 427 269 Explosions . | . . . . Melee . | . . . . Ramming 29 | . . 21 8 Kinetic 848 | . 157 564 127 Thermal 1006 | . 174 676 156 Explosive . | . . . . Electromagnetic . | . . . . Impact . | . . . . Slashing . | . . . . Piercing . | . . . . Highest Corruption . | . . . . Average Corruption . | . . . . Corruption Purged . | . . . . Corruption Blocked . | . . . . Overload Shots . | . . . . Overflow Damage 8 | . . 8 . Projectiles 8 | . . 8 . Explosions . | . . . . Melee . | . . . . Knockbacks 9 | . . 9 . Impact . | . . . . Kinetic 7 | . . 7 . Secondary 2 | . . 2 . Self-Inflicted Damage . | . . . . Shots . | . . . . Rammed 1 | . . 1 . Targets Rammed 6 | . . 2 4 Kicked 5 | . . 1 4 Crushed . | . . . . Highest Temperature 420 | . 142 420 . Average Temperature 86 | . 51 100 . Received Heat Transfer 387 | . . 225 162 Effects 3 | . . 3 . Shutdowns 1 | . . 1 . Interference 2 | . . 2 . Siege Activations . | . . . . Robots Corrupted . | . . . . Combat Hostiles . | . . . . Parts Fried . | . . . . Impact Corruptions . | . . . . Robots Melted 1 | . . 1 . Combat Hostiles 1 | . . 1 . Parts Melted 6 | . 1 5 . Heat Transferred 2707 | . 400 1974 333 Parts Sabotaged . | . . . . Parts Stolen . | . . . . Parts Stripped . | . . . . Power Chain Reactions . | . . . . Missiles Intercepted . | . . . . Alert | -11 -10 -9 -9 ------- Run | Jun Mat Mat Min Peak Influence 354 | . 260 354 213 Initial 109 | . . 109 63 Average 211 | . 155 246 147 Maximum Alert Level 1 | . 1 1 1 Low Security (%) 45 | 100 67 27 88 Level 1 54 | . 32 72 11 Level 2 . | . . . . Level 3 . | . . . . Level 4 . | . . . . Level 5 . | . . . . High Security . | . . . . Max Security . | . . . . Squads Dispatched 3 | . 1 2 . Investigation 1 | . . 1 . Extermination . | . . . . Reinforcement 2 | . 1 1 . Assault . | . . . . Garrison . | . . . . Intercept . | . . . . Searches Triggered . | . . . . Construction Impeded . | . . . . Haulers Reinforced . | . . . . Active Scanning Responses . | . . . . Cargo Convoy Interrupts . | . . . . Stealth | -11 -10 -9 -9 --------- Run | Jun Mat Mat Min Distress Signals 3 | . 2 1 . Communications Jammed . | . . . . Distress Signals . | . . . . Times Spotted 61 | . 16 31 14 Peak Tracking Total 10 | . 7 5 10 Tactical Retreats 1 | . . 1 . Traps | -11 -10 -9 -9 ------- Run | Jun Mat Mat Min Traps Triggered 1 | . . 1 . Indirectly . | . . . . Trap Hack Attempts . | . . . . Triggered . | . . . . Disarmed 6 | . . 6 . Reprogrammed . | . . . . Reused . | . . . . Traps Extracted . | . . . . Installed . | . . . . Triggered . | . . . . Machines | -11 -10 -9 -9 ---------- Run | Jun Mat Mat Min Machines Disabled 4 | . . 2 2 Max in Single Turn 2 | . . 1 2 Machines Repaired . | . . . . Machines Sabotaged . | . . . . Overloaded Fab Kills . | . . . . Hacking | -11 -10 -9 -9 --------- Run | Jun Mat Mat Min Machines Accessed 10 | . 3 7 . Terminals 8 | . 3 5 . Fabricators . | . . . . Repair Stations . | . . . . Recycling Units 2 | . . 2 . Scanalyzers . | . . . . Garrison Access . | . . . . Total Hacks 26 | . 7 19 . Successful 14 | . 4 10 . Failed 12 | . 3 9 . Catastrophic 4 | . 1 3 . Database Lockouts . | . . . . Manual 12 | . 3 9 . Terminals 23 | . 7 16 . Fabricators . | . . . . Repair Stations . | . . . . Recycling Units 3 | . . 3 . Scanalyzers . | . . . . Garrison Access . | . . . . Terminal Hacks 11 | . 4 7 . Robot Analysis 2 | . . 2 . Prototype ID Bank 5 | . 3 2 . Alert Level 1 | . . 1 . Locate Traps 2 | . 1 1 . Disarm Traps 1 | . . 1 . Fabricator Hacks . | . . . . Repair Station Hacks . | . . . . Recycling Unit Hacks 3 | . . 3 . Report Inventory 1 | . . 1 . Retrieve Components 2 | . . 2 . Scanalyzer . | . . . . Garrison Access Hacks . | . . . . Unauthorized Hacks . | . . . . Terminals . | . . . . Fabricators . | . . . . Repair Stations . | . . . . Recycling Units . | . . . . Scanalyzers . | . . . . Garrison Access . | . . . . Data Cores Recovered . | . . . . Used . | . . . . Hacking Detections 8 | . 3 5 . Full Trace Events . | . . . . Feedback Events . | . . . . Feedback Blocked . | . . . . Robot Schematics Acquired . | . . . . Robots Built . | . . . . Authchips . | . . . . Time . | . . . . Total Robot Build Rating . | . . . . Part Schematics Acquired . | . . . . Parts Built . | . . . . Authchips . | . . . . Time . | . . . . Total Part Build Rating . | . . . . Parts Repaired . | . . . . Time . | . . . . Parts Recycled . | . . . . Recycled Matter . | . . . . Retrieved Matter . | . . . . Retrieved Components 11 | . . 11 . Parts Scanalyzed . | . . . . Part Schematics Acquired . | . . . . Parts Damaged . | . . . . Bothacking | -11 -10 -9 -9 ------------ Run | Jun Mat Mat Min Used RIF Installer . | . . . . Robots Hacked . | . . . . Non-combat . | . . . . Combat . | . . . . Robot Hacks Applied . | . . . . Relay Couplers Released . | . . . . Fabnet Peak Effective % . | . . . . Robots Rewired . | . . . . Allies Hacked . | . . . . Hacks Repelled . | . . . . Allies | -11 -10 -9 -9 -------- Run | Jun Mat Mat Min Total Allies . | . . . . Largest Group . | . . . . Highest-Rated Group . | . . . . Highest-Rated Ally . | . . . . Total Orders . | . . . . Ally Attacks . | . . . . Total Damage . | . . . . Kills . | . . . . Allies Corrupted . | . . . . Allies Melted . | . . . . Intel | -11 -10 -9 -9 ------- Run | Jun Mat Mat Min Robot Analysis Total 2 | . . 2 . Derelict Logs Recovered . | . . . . Drone Launches . | . . . . Drone Recoveries . | . . . . Exploration | -11 -10 -9 -9 ------------- Run | Jun Mat Mat Min Turns Passed 2578 | 63 285 1753 477 Spaces Moved 1310 | 47 220 753 290 Core 23 | 13 . 10 . Treads 223 | . . 223 . Legs 583 | 34 21 238 290 Wheels . | . . . . Hover . | . . . . Flight 481 | . 199 282 . Fastest Speed 31 | 50 37 31 120 Average Speed 105 | 100 48 109 137 Slowest Speed 260 | 120 120 200 260 Overloaded Moves . | . . . . Propulsion Burnouts . | . . . . Robots Hopped 2 | . . 2 . Cave-ins Triggered . | . . . . Exploration Rate (%) 38 | 3 47 51 51 Regions Visited 3 Branch Regions 1 Pre-discovered Areas . | . . . . Known Exits Taken . | . . . . Unknown Exits Taken 3 | 1 1 1 . Scrap Searched 1 | . . . 1 Spaces Dug 11 | . 4 7 . Terrain Destroyed 18 | . 5 13 . Melee . | . . . . Projectile 18 | . 5 13 . AOE . | . . . . Terrain Rammed . | . . . . Walls Destroyed . | . . . . Machines Disabled . | . . . . Actions | -11 -10 -9 -9 --------- Run | Jun Mat Mat Min Total 2187 | 62 333 1463 329 Wait 600 | . 51 540 9 Move 1303 | 46 219 748 290 Hop 2 | . . 2 . Pick Up 57 | 10 12 32 3 Fast Attach . | . . . . Attach 24 | 6 3 14 1 Detach . | . . . . Swap 28 | . 7 19 2 Drop 26 | . 10 14 2 Fire 141 | . 31 92 18 Melee . | . . . . Ram . | . . . . Kick 5 | . . 1 4 Crush 1 | . . 1 . Escape Stasis . | . . . . Rewire . | . . . . Trap . | . . . . Miscellaneous . | . . . . Route ------- -11/Junkyard -10/Materials (discovered 4 exits: *Mat x2 / [*Min x2]) -9/Materials (discovered 2 exits: [*Mat] / [*Min]) -9/Mines (discovered 2 exits: [*Mat x2]) History --------- Turn | Location | Event 5 | -11/Junkyard | Discovered new exit (range 15) 64 | -11/Junkyard | Entered Materials 74 | -10/Materials | Discovered new exit (range 16) 234 | -10/Materials | Discovered new exit (range 8) 310 | -10/Materials | Build established: Mutant 340 | -10/Materials | Discovered new exit (range 6) 343 | -10/Materials | Discovered new exit (range 15) 349 | -10/Materials | Entered another Materials area 349 | -9/Materials | Evolved 2 slots: Propulsion x2 431 | -9/Materials | Lost 3 parts (1p2n) 779 | -9/Materials | Build established: Scavenger-Sprinter 852 | -9/Materials | Lost 6 parts (1p4n1w) 1033 | -9/Materials | Discovered new exit (range 15) 1254 | -9/Materials | Build established: Scavenger-Mutant 1804 | -9/Materials | Discovered new exit (range 16) 2102 | -9/Materials | Entered Mines 2134 | -9/Mines | Discovered new exit (range 12) 2310 | -9/Mines | Discovered new exit (range 5) 2377 | -9/Mines | Assembled infested the area 2421 | -9/Mines | Core integrity fell below 50% 2437 | -9/Mines | Core integrity fell below 20% 2464 | -9/Mines | Met 8R-AWN 2476 | -9/Mines | Lost 4 parts (1p2n1w) 2579 | -9/Mines | Self-destructed Last Messages --------------- Come along little bot, it's safer with us than out here, anyway. 02466_ Kicked R-06 Scavenger. 02471_ HV Slug penetrates Wall. 02471_ HV Slug penetrates as-31899. 02471_ as-31899 suffers critical hit (Destroy). 02471_ as-31899 destroyed. 02471_ HV Slug penetrates as-56076. 02471_ as-32132 destroyed. 02476_ HV Slug penetrates as-56076. 02481_ as-56076 suffers critical hit (Destroy). 02481_ as-56076 destroyed. 8R-AWN: I can't promise they won't dissect you, by the way. They're weird like that. Either way, I'm sure they'll be happy to try putting you back together again. 02511_ K-01 Serf collects debris. 02532_ R-06 Scavenger collects Sml. Storage Unit. 02533_ K-01 Serf collects debris. 02541_ R-06 Scavenger collects Aluminum Leg. 02545_ R-06 Scavenger collects Com. Wheel. Map ----- +----------------------------------------------------+ | ?????????????????????????????????????????? | | ?????????????????????????????????????????? | | ?????????????????????????????????????????? | | ?????????????????????????????????????????? | | ?????????????????????????????????????????? | | ?????????????????????????????????????????? | | ?????????????????????????????????????????? | | ?????????????????????????????????????????? | | ?????????????????????????????????????????? | | ???????????????????????????????????#?????? | | ???????????????????????? """### ####? | | ???????????????????????? #? | | ???????????????????????????????######## #? | | ??????????????????????????????????????# #? | | ?????????????????#????????????????????# #? | | ????????????????? ????????????????????# #? | | ????????????????? ????????????????????#%#? | | ????????????????# #???????????????????#%#? | | ????????????????#r#???????????????????#]#? | | ????????????????#*#???????????????????#%#? | | ????????????????#%#??#????????????????#%#? | | ????????????????#=#?? ????????????????#%#? | | ????????????????# #?# ????????????????# #? | | ????????????????# ? ?????????????????#%#? | | ????????????????# #? ?????????????????# #? | | ????????????????#@#? ?????????????????# #? | | ????????????????# # ##?????????###????# #? | | ????????????????# # #????????? #???## #? | | ????????????????# # #?????????# #??## %## | | ??????#?????????# # #??????????# #?## !!* | | ??????# ######### ###?????????# ### =% | | ???????# + ## % ########### ## = | | ????????# + | | ????????# # | | ???????##### ##### | | ??????## ##???## # | | ??????# ####?????## ## | | ?????## ##?##########= #? | | ????## #??# =| = ## | | ????# ##?## !%= # | | ????# ##??# ######* %[! | | ????# ###?# #??## % = % | | ????##### ] ### ###?## | | ????????### #??## % % | | ??????????## #?## % ## | | ???????????# #####?# #### # | | ???????????# ##?????# ##??# ## | | ???????????# #??????# #???## #? | | ???????????# #?????## ##????#####? | | ??????????# ##????## ###########? | +----------------------------------------------------+ Best States ------------- Heat Dissipation 50 Energy Generation 12 Energy Capacity 265 Matter Stores 300 Matter Capacity 300 Sight Range 16 Robot Scan Range 14 Terrain Scan Density 10 Evasion (%) 63 Recoil Reduction 2 Item Schematics ----------------- None Robot Schematics ------------------ None Fabricated ------------ Nothing Alien Tech Used ----------------- None Achievements -------------- Slippery One Challenges ------------ None Game ------ Seed VariableCarbideUnit Manual? 0 Play Time 00:40:10 Cumulative 23.6 hours Start 2023.07.06 @ 19:38:14 End 2023.07.07 @ 10:49:43 Sessions 3 Manual Loads 0 Difficulty Rogue Special Mode None Game No. 12 Rogue 12 Adventurer 0 Explorer 0 Win Type - Total 0 Types 0/0/0/0/0/0/0/0/0 Lore% 24 Gallery% 26 Achievement% 26 Wizard Run 0 Options --------- ASCII 0 Keyboard 0 Movement Mouse Keybinds 0 Fullscreen 1 Font 18/SmallcapsGlow Map View 76x50 Tactical HUD 1 Map Filters NONE Filters NONE Steam X RUN: 5bbe2f9a-89f2-4ed0-85f0-b505d632ae82